[Event "Arona Festival 2024"]
[Site "Arona Tenerife"]
[Date "2024.06.30"]
[Round "10.6"]
[White "Socko, Monika"]
[Black "Pichot, Alan"]
[Result "0-1"]
[ECO "E91"]
[WhiteElo "2416"]
[BlackElo "2640"]
[Annotator "TA"]
[PlyCount "172"]
[EventDate "2024.06.20"]
[EventType "swiss"]
[EventCountry "ESP"]
[SourceTitle "playchess.com"]
[Source "ChessBase"]
[SourceQuality "1"]
[TimeControl "5400+30"]

{[%evp 76,172,-126,-131,-124,-114,-110,-83,-117,-108,-32,-33,-8,-74,-52,-908,-922,-1470,-922,-915,-908,-900,-766,-500,-308,-29974,-29975,-29974,-29976,-29975,-29976,-29971,-937,-937,-937,-937,-923,-908,-902,-900,-889,-871,-785,-819,-822,-808,-817,-810,-672,-915,-908,-1258,-764,-756,-756,-698,-727,-559,-490,-442,-435,-380,-86,-86,-86,-126,-74,-85,-114,-202,-427,-1683,-1058,-292,-41,-29960,-29964,-29965,-29966,-29972,-29975,-29975,-29961,-29975,-29976,-29982,-29983,-29983,-29980,-29980,-29981,-29980,-29979,-29983,-29984,-29988,-29989,-29989,-29990]} 1. d4 {[%emt 0:00:03]} Nf6 {[%emt 0:00:18]} 2. Nf3 {[%emt 0:00:20]} g6 {[%emt 0:00:06]} 3. c4 {[%emt 0:00:03]} Bg7 {[%emt 0:00:06]} 4. Nc3 {[%emt 0:00:04]} O-O {[%emt 0:00:07]} 5. e4 {[%emt 0:00:03]} d6 {[%emt 0:00:06]} 6. Be2 {[%emt 0:00:06]} Bg4 {[%emt 0:02:15]} 7. Be3 {[%emt 0:04:02]} Nfd7 {[%emt 0:00:33]} 8. Ng1 {[%emt 0:03:13]} Bxe2 {[%emt 0:00:11]} 9. Ngxe2 {[%emt 0:00:03]} e5 {[%emt 0:06:08]} 10. d5 {[%emt 0:05:47]} f5 {[%emt 0:06:14]} 11. f3 {[%emt 0:01:15] E91: King's Indian: Classical: 6 Be2, unusual replies including 6...c5 and 6...Bg4.} Bh6 {[%emt 0:03:42]} 12. Qd2 {[%emt 0:07:12]} Qh4+ $146 {[%emt 0:02:26]} ({Predecessor:} 12... Bxe3 13. Qxe3 Na6 14. O-O-O Nac5 15. h4 a5 16. h5 f4 17. Qg1 g5 18. h6 a4 {1-0 Weetik,V (2423)-Ahn,H (2259) Titled Tuesday intern op 11th Jul Early blitz 2023 (2)}) 13. g3 {[%emt 0:05:03]} Bxe3 14. Qxe3 {[%emt 0:00:26]} Qh5 {[%emt 0:06:08]} 15. exf5 gxf5 {[%emt 0:00:39]} 16. O-O-O {[%emt 0:04:49]} Nf6 {[%emt 0:00:55]} 17. h3 {[%emt 0:07:49]} Nbd7 {[%emt 0:07:57]} 18. g4 {[%emt 0:59:12]} f4 {[%emt 1:01:39]} 19. Qxf4 {[%emt 0:00:30]} exf4 {[%emt 0:00:00]} 20. gxh5 {[%emt 0:00:00]} Ne5 {[%emt 0:00:00]} 21. Nxf4 {[%emt 0:00:00]} Nxc4 {[%emt 0:00:00]} 22. Ne6 {[%emt 0:00:00]} Rf7 {[%emt 0:00:00]} 23. Rhg1+ {[%emt 0:00:00]} Kh8 {[%emt 0:00:00]} 24. h6 {[%emt 0:00:00]} Rg8 {[%emt 0:00:00]} 25. Rg7 {[%emt 0:00:00]} Rgxg7 {[%emt 0:00:00]} 26. hxg7+ {[%emt 0:00:00]} Kg8 {[%emt 0:00:00]} 27. Ne4 {[%emt 0:00:00]} Ne3 {[%emt 0:00:00]} 28. Nxf6+ Rxf6 {[%emt 0:00:00]} 29. Rd3 {[%emt 0:00:00]} Nxd5 {[%emt 0:00:00]} 30. Nd8 {[%emt 0:00:00]} Rf5 {[%emt 0:00:00]} 31. Nxb7 {[%emt 0:00:00]} Kxg7 {[%emt 0:00:00]} 32. Ra3 {[%emt 0:00:00]} Kf6 {[%emt 0:00:00]} 33. Nd8 {[%emt 0:00:00]} h5 {[%emt 0:00:00]} 34. Nc6 {[%emt 0:00:00]} Nf4 {[%emt 0:00:00]} 35. Kd2 {[%emt 0:00:00]} Rc5 {[%emt 0:00:00]} 36. Nd4 {[%emt 0:00:00]} Rd5 {[%emt 0:00:00]} 37. Ke3 {[%emt 0:00:00]} Ng2+ {[%emt 0:00:00]} 38. Kf2 {[%emt 0:00:00]} Rxd4 {[%emt 0:00:00]} 39. Kxg2 {[%emt 0:00:00]} Rd2+ $1 {[%emt 0:00:00]} 40. Kg3 {[%emt 0:00:00]} Rxb2 {[%emt 0:00:00]} 41. Rxa7 {[%emt 0:00:00]} c5 {[%emt 0:00:00]} 42. a4 {[%emt 0:00:00]} Ke5 {[%emt 0:02:17]} (42... Ra2 $17 43. Kf4 Ke6) 43. f4+ $1 $15 {[%emt 0:00:00]} Kd4 {[%emt 0:10:13]} 44. a5 {[%emt 0:00:00]} (44. Rd7 $1 $11 {remains equal.}) 44... c4 $17 45. a6 $2 {[%emt 0:13:00][%mdl 8192]} (45. f5 $15) 45... Rb6 $19 {[%emt 0:01:00]} 46. Ra8 {[%emt 0:00:30]} d5 {[%emt 0:00:30]} 47. a7 {[%emt 0:00:00]} Rb7 $1 {[%emt 0:00:30]} (47... Ra6 48. f5 c3 49. f6 $11) 48. f5 {[%emt 0:00:00]} c3 {[%emt 0:00:00]} 49. Kh4 {[%emt 0:00:00]} Rc7 $1 {[%emt 0:00:00]} 50. Kxh5 $2 {[%emt 0:00:00]} (50. f6 $19 c2 51. f7 Rxf7 (51... c1=B 52. f8=Q Bd2 53. Qf2+ Be3 54. Qb2+ Kd3 55. Qb3+ Kd2 56. Qxd5+ Kc1 57. Qh1+ Kb2 58. Rb8+ Kc3 59. Qe1+ Bd2 60. Qg3+ Kd4 61. Rd8+) 52. Rc8 Rxa7 53. Rxc2) 50... c2 {[%emt 0:00:00]} 51. Rh8 {[%emt 0:02:30]} Rxa7 {[%emt 0:00:00]} (51... c1=B $2 52. a8=Q (52. a8=B Rg7 $11) 52... Rc3 53. Qa1 $18) 52. Rc8 {[%emt 0:00:00]} Kd3 {[%emt 0:00:00]} 53. Kg6 {[%emt 0:00:00] [#]} Ra8 {[%emt 0:00:00]} (53... Kd2 $142 $3 {[%mdl 512]} 54. f6 c1=Q (54... c1=R $2 55. Rd8 $19) 55. Rxc1 Kxc1 56. Kf5 Rh7 (56... d4 57. Ke4 Rf7 58. Kxd4 Rxf6 59. Ke4 Rh6 60. Kf5 Rxh3 61. Kf6 Re3 62. Kg5 Kd2 63. Kf5 Kd3 64. Kf4 Re4+ 65. Kg5 Re5+ 66. Kh6 Ke4 67. Kg6 Rf5 68. Kh6 Kf4 69. Kg6 Kg4 70. Kh6 Rg5 71. Kh7 Kh5 72. Kh8 Kg6 73. Kg8 Rf5 74. Kh8 Rf8#) 57. h4 Rxh4 58. Kg5 Rh8 59. Kf4 Kc2 60. Ke5 Rh5+ (60... Rf8 61. Kxd5 Rxf6 62. Ke5 Rf2 63. Kd5 Kd3 64. Kd6 Kd4 65. Ke6 Rf4 66. Kd6 Rf6+ 67. Ke7 Ke5 68. Kd7 Rg6 69. Kc7 Kd5 70. Kd7 Rg7+ 71. Ke8 Ke6 72. Kd8 Re7 73. Kc8 Kd6 74. Kd8 Re5 75. Kc8 Rb5 76. Kd8 Rb8#) 61. Kd4 Rf5 62. f7 Rxf7 63. Kxd5 Re7 64. Kd4 Re8 65. Kd5 Kd3 66. Kd6 Kc4 67. Kd7 Re5 68. Kd6 Re4 69. Kc6 Rd4 70. Kb6 Rd6+ 71. Kb7 Kb5 72. Kc7 Rd1 73. Kb7 Rc1 74. Ka8 Rc7 75. Kb8 Kb6 76. Ka8 Rc8#) 54. Rxa8 $19 {[%emt 0:00:00]} c1=Q {[%emt 0:00:00]} (54... c1=B $2 55. f6 Bd2 56. f7 $18) 55. f6 {[%emt 0:00:00]} Qg1+ {[%emt 0:00:07]} 56. Kh7 {[%emt 0:00:00]} Qf1 {[%emt 0:01:24]} 57. Kg7 {[%emt 0:00:17]} Qg2+ {[%emt 0:00:21]} (57... Qxh3 58. Ra3+ Kd4 59. Rxh3 Ke5 60. f7 d4 61. f8=Q (61. f8=B Kd5 62. Kf6 Ke4 63. Rh4+ Kd5 64. Rf4 d3 65. Bb4 d2 66. Bxd2 Kd6) (61. Rh5+ Ke4 62. f8=Q Kd3 63. Qf3+ Kc4 64. Qc6+ Kd3 65. Rh3+ Kd2 66. Qg2+ Ke1 67. Rh1#) 61... Kd5 62. Qc8) 58. Kf8 {[%emt 0:00:08]} Qb2 {[%emt 0:02:27]} (58... Qxh3 59. Ra3+ Kc2 60. Rxh3 d4 61. f7 d3 62. Ke8 (62. Rxd3 Kxd3 63. Ke7 Ke4 64. Ke6 Ke3 65. f8=Q Kd4 66. Qf4+ Kc3 67. Qe3+ Kc4) 62... d2 63. f8=Q (63. f8=R d1=Q $11)) 59. Ra6 {[%emt 0:00:40]} Qb8+ 60. Kg7 {[%emt 0:03:25]} Qg3+ {[%emt 0:02:11]} 61. Kf8 {[%emt 0:00:00]} Qg6 (61... Qxh3 62. Ra3+ Kc2 63. Rxh3 d4 64. f7 d3 65. Kg8 (65. Rxd3 Kxd3 66. Ke7 Ke2 67. f8=Q Ke3 68. Kd6 Ke2 69. Qf4 Kd3) 65... d2 66. Rh2 (66. f8=B d1=Q $15)) 62. Ke7 {[%emt 0:01:00]} Ke4 {[%emt 0:00:22]} 63. Ra1 {[%emt 0:00:00]} Qg3 {[%emt 0:00:32]} 64. f7 {[%emt 0:00:00]} Qe5+ {[%emt 0:00:19]} (64... Qxh3 65. f8=Q (65. f8=R $2 Qh4+ 66. Kd7 Qg4+ 67. Kd8 d4 $19) 65... Qc3 66. Ra4+ d4 67. Qa8+ Kf4 68. Qd5 $18) 65. Kd7 {[%emt 0:01:30]} Qxa1 {[%emt 0:00:41]} 66. f8=Q {[%emt 0:00:30]} Qa7+ {[%emt 0:01:06]} 67. Kc6 {[%emt 0:00:00]} Qa6+ $1 {[%emt 0:00:00]} 68. Kc7 {[%emt 0:01:00]} d4 $2 {[%emt 0:00:00]} (68... Qa5+ $19 {is more deadly.} 69. Kd7 d4 70. Qe7+ Kf3 71. Qf6+ Ke3 72. Qh6+ (72. Qe6+ $2 Kd2 $19) 72... Ke2 73. Qe6+ Kd2) 69. Qe7+ $17 {[%emt 0:00:00]} Kd3 {[%emt 0:00:09]} 70. Qe1 {[%emt 0:00:00]} Qc4+ {[%emt 0:00:32]} ({Better is} 70... Qa7+ 71. Kd6 Qb8+ 72. Kc6 Qc8+ 73. Kd5 Qf5+ (73... Qxh3 74. Qd1+ Ke3 75. Qxd4+ Kf3 76. Qe4+ Kf2 77. Kd4 $11) 74. Kd6 Qxh3 75. Qd1+ Ke4 76. Qe2+ Qe3) 71. Kd6 $17 {[%emt 0:00:00]} Qc3 $1 {[%emt 0:01:14]} 72. Qf1+ {[%emt 0:00:00] [#]} (72. Qf2 $17 {was worth a try.}) 72... Kc2 $1 $19 {[%emt 0:00:12]} 73. Qe2+ {[%emt 0:00:00]} (73. Qg2+ $142 Qd2 74. Qc6+ Kd1 (74... Qc3 $2 75. Qg2+ Kb3 76. Qg8+ Qc4 77. Qg1 $19) 75. Qf3+ Qe2 76. Qb3+ Ke1 77. Qb1+ Kf2 78. Qf5+ Qf3 79. Qc2+ Ke3 80. Qc1+ Ke4 81. Qc6+ Kf4 82. Qc4) 73... Kb3 $19 {[%emt 0:00:09]} 74. Qd1+ {[%emt 0:00:00]} Kb4 $2 {[%emt 0:00:35]} (74... Ka2 $19 {[%cal Od4d3] ( -> ...d3!)} 75. Qe2+ Ka3) 75. Qb1+ $2 {[%emt 0:00:14][%mdl 8192] [#]} (75. h4 $15) 75... Ka3 $1 {[%emt 0:00:16]} 76. Qd1 {[%emt 0:02:19]} d3 $1 {[%emt 0:00:13]} ({Weaker is} 76... Qxh3 77. Qxd4 Qf5 78. Qe3+ Kb4 79. Qe1+ Kc4 80. Qh4+ Kb3 81. Kc7 $11) 77. h4 {[%emt 0:00:02]} d2 {[%emt 0:01:31]} 78. h5 {[%emt 0:00:04]} Qg3+ {[%emt 0:00:32]} 79. Kd7 {[%emt 0:00:48]} Qf4 {[%emt 0:00:12]} 80. Kd8 {[%emt 0:01:11]} Kb2 {[%emt 0:00:41]} 81. Kd7 {[%emt 0:00:25]} Qe3 {[%emt 0:00:21]} 82. h6 {[%emt 0:00:24]} Qxh6 {[%emt 0:00:42]} 83. Qe2 {[%emt 0:00:07]} Qg5 {[%emt 0:00:37]} 84. Kc6 {[%emt 0:00:49]} Qa5 {[%emt 0:00:19]} 85. Qd1 {[%emt 0:00:32]} Qc3+ {[%emt 0:00:11]} 86. Kd7 {[%emt 0:00:11]} Qc2 {[%emt 0:00:07]} 0-1

[Event "Arona Festival 2024"]
[Site "Arona Tenerife"]
[Date "2024.06.30"]
[Round "10.7"]
[White "Gupta, Abhijeet"]
[Black "Goutham Krishna H"]
[Result "1-0"]
[ECO "E73"]
[WhiteElo "2589"]
[BlackElo "2324"]
[Annotator "TA"]
[PlyCount "79"]
[EventDate "2024.06.20"]
[EventType "swiss"]
[EventCountry "ESP"]
[SourceTitle "playchess.com"]
[Source "ChessBase"]
[SourceQuality "1"]
[TimeControl "5400+30"]

{[%evp 10,79,43,48,31,35,31,29,25,38,37,24,26,30,31,20,39,39,35,32,79,72,79,71,73,71,87,79,68,39,46,46,60,53,51,49,62,58,56,34,22,13,15,20,32,0,0,0,0,0,35,0,0,0,0,0,0,0,0,0,0,0,0,0,0,0,0,0,29989,29990,29990,29991]} 1. d4 {[%emt 0:00:03]} Nf6 {[%emt 0:01:39]} 2. c4 {[%emt 0:00:03]} g6 {[%emt 0:00:07]} 3. Nc3 {[%emt 0:00:04]} Bg7 {[%emt 0:00:04]} 4. e4 {[%emt 0:00:10]} d6 {[%emt 0:00:04]} 5. Be2 {[%emt 0:00:08]} O-O {[%emt 0:00:07]} 6. Be3 {[%emt 0:00:04]} Na6 {[%emt 0:00:06]} 7. h3 {[%emt 0:00:26]} e5 {[%emt 0:00:53]} 8. d5 {[%emt 0:00:45]} Nc5 {[%emt 0:02:41] White has an edge.} 9. Qc2 {[%emt 0:00:07]} c6 {[%emt 0:00:04]} 10. Nf3 {[%emt 0:07:54]} cxd5 11. cxd5 {[%emt 0:00:06]} Nh5 {[%emt 0:10:15]} 12. b4 {[%emt 0:09:34]} Na6 {[%emt 0:00:59]} 13. a3 {[%emt 0:00:51][%cal Ba2a3,Ba3a4][%mdl 32]} f5 {[%emt 0:03:40]} 14. O-O {[%emt 0:04:26]} f4 {[%emt 0:04:13]} (14... Nf4 $14) 15. Bd2 {[%emt 0:00:06] White is more active.} Bd7 {[%emt 0:06:05]} 16. Rac1 {[%emt 0:02:48]} Rc8 {[%emt 0:16:38]} 17. Qb3 {[%emt 0:02:00]} h6 {[%emt 0:12:47]} 18. a4 {[%emt 0:13:44]} Nf6 {[%emt 0:00:53]} 19. Bb5 {[%emt 0:05:41]} g5 {[%emt 0:02:32]} 20. Rfe1 {[%emt 0:06:12]} Kh8 {[%emt 0:14:09]} 21. Bxd7 {[%emt 0:03:00]} Qxd7 {[%emt 0:00:02]} 22. Nb5 {[%emt 0:00:18]} Rxc1 {[%emt 0:00:31]} 23. Bxc1 {[%emt 0:00:05][%cal Oc1b2]} Nc7 {[%emt 0:01:17]} 24. Nxc7 {[%emt 0:02:05]} (24. Nxa7 Ra8 $11) 24... Qxc7 {[%emt 0:00:34]} 25. Ba3 {[%emt 0:01:09]} Rc8 {[%emt 0:00:21]} 26. b5 {[%emt 0:00:39]} Bf8 {[%emt 0:03:24]} 27. Qb1 {[%emt 0:07:13]} Qa5 {[%emt 0:06:34]} 28. Rc1 $1 {[%emt 0:01:17]} Rxc1+ {[%emt 0:01:16]} 29. Qxc1 {[%emt 0:00:04]} Kg7 {[%emt 0:00:05][%cal Og5g4]} 30. Qc8 {[%emt 0:04:54]} Qxa4 {[%emt 0:00:33]} 31. Nxe5 {[%emt 0:18:24]} Qxa3 {[%emt 0:00:48]} 32. Qxb7+ {[%emt 0:00:13]} Kh8 {[%emt 0:00:10]} 33. Ng6+ {[%emt 0:00:02]} Kg8 {[%emt 0:00:07]} 34. Qc8 {[%emt 0:00:11]} Nh7 {[%emt 0:01:17] Threatens to win with ...Kg7.} 35. e5 {[%emt 0:00:25] [#] Strongly threatening e6.} Qa1+ {[%emt 0:08:00]} 36. Kh2 {[%emt 0:00:02]} Qe1 {[%emt 0:00:02]} 37. Ne7+ {[%emt 0:06:05]} (37. exd6 $5 f3 $8 (37... Qxf2 $2 38. Ne7+ Kg7 39. Nf5+ Kh8 40. d7 $18) 38. d7 Qxf2 39. Ne7+ Kg7 40. Nf5+ Kg8 (40... Kg6 $2 41. Qe8+ Kxf5 42. Qe6+ Kf4 43. Qg4+ Ke5 44. d8=Q $18) 41. Ne7+ (41. Nxh6+ Kg7 $11) 41... Kg7 42. Nf5+ Kg8 (42... Kg6 $2 43. Qe8+ Kxf5 44. Qe6+ Kf4 45. Qg4+ Ke5 46. d8=Q $18) 43. Nxh6+ Kg7 44. Nf5+ Kg8 (44... Kg6 $2 45. Qe8+ Kxf5 46. Qe6+ Kf4 47. Qg4+ Ke5 48. d8=Q $18) 45. Ne7+ Kg7 46. Nf5+ Kg8 (46... Kg6 $2 47. Qe8+ Kxf5 48. Qe6+ Kf4 49. Qg4+ Ke5 50. d8=Q $18) 47. Nh6+ Kg7 48. Nf5+ $11) 37... Kh8 {[%emt 0:00:20] ...f3 would now be deadly.} 38. exd6 {[%emt 0:00:36]} Qxf2 $2 {[%emt 0:00:41][%mdl 8192] [#]} (38... f3 $11 39. Ng6+ (39. gxf3 $2 {perishes.} Qxf2+ 40. Kh1 Qxf3+ 41. Kh2 Qf4+ 42. Kh1 Qxd6 $19) 39... Kg7 40. Nxf8 Nxf8) 39. Qe6 {[%emt 0:00:36][%csl Ge7][%cal Re6g8]} Qg3+ {[%emt 0:00:56]} 40. Kh1 {[%emt 0:00:17] Weighted Error Value: White=0.04 (flawless) /Black=0.25 (precise) .  Loses game:     	---       	Black=1      Mistake:       	---       	Black=1      Inaccurate:     	White=3     	Black=1      OK:         	White=14    	Black=14     Best:        	White=2     	Black=4      Strong:       	White=1     	---} 1-0

[Event "Arona Festival 2024"]
[Site "Arona Tenerife"]
[Date "2024.06.30"]
[Round "10.8"]
[White "Peralta, Fernando"]
[Black "Prraneeth Vuppala"]
[Result "1/2-1/2"]
[ECO "D27"]
[WhiteElo "2562"]
[BlackElo "2436"]
[Annotator "TA"]
[PlyCount "67"]
[EventDate "2024.06.20"]
[EventType "swiss"]
[EventCountry "ESP"]
[SourceTitle "playchess.com"]
[Source "ChessBase"]
[SourceQuality "1"]
[TimeControl "5400+30"]

{[%evp 17,67,0,0,0,0,6,0,0,0,0,38,34,22,39,24,20,27,9,6,7,2,0,0,0,0,8,5,0,0,0,11,12,7,0,0,0,0,0,0,0,0,0,0,0,0,0,0,0,0,0,0,0]} 1. d4 {[%emt 0:00:03]} d5 {[%emt 0:01:52]} 2. c4 {[%emt 0:00:06]} c6 {[%emt 0:00:12]} 3. Nf3 {[%emt 0:00:34]} Nf6 {[%emt 0:00:17]} 4. Nc3 {[%emt 0:00:11]} e6 {[%emt 0:00:16]} 5. e3 {[%emt 0:00:11]} a6 {[%emt 0:00:30]} 6. Bd3 {[%emt 0:04:43]} dxc4 {[%emt 0:01:34]} 7. Bxc4 {[%emt 0:00:08]} b5 {[%emt 0:00:09]} 8. Bb3 {[%emt 0:01:53]} c5 {[%emt 0:00:26]} 9. O-O {[%emt 0:04:08]} Bb7 {[%emt 0:00:55]} 10. e4 {[%emt 0:01:38]} cxd4 11. Nxd4 {[%emt 0:00:05]} Nbd7 {[%emt 0:01:13][%cal Of8c5]} 12. Be3 {[%emt 0:01:53][%cal Ob3e6] [#] Black must now prevent Bxe6!} Bb4 {[%emt 0:01:12]} 13. f3 {[%emt 0:03:38][%cal Ob3e6]} Qe7 {[%emt 0:02:44]} 14. a4 {[%emt 0:13:13]} bxa4 15. Nxa4 {[%emt 0:00:12]} O-O {[%emt 0:15:08]} 16. Qe2 {[%emt 0:00:13]} Nc5 {[%emt 0:03:56]} 17. Nxc5 {[%emt 0:07:53]} Bxc5 {[%emt 0:00:07] The position is equal.} 18. Bc4 {[%emt 0:01:45]} a5 {[%emt 0:02:45][%cal Ba6a5,Ba5a4][%mdl 32]} 19. Rfc1 {[%emt 0:04:28]} Rfd8 {[%emt 0:08:01]} 20. Nb3 {[%emt 0:02:47][%csl LRa5,LRc5]} Bxe3+ {[%emt 0:03:27]} 21. Qxe3 {[%emt 0:02:33][%cal Oe3c5]} a4 $1 {[%emt 0:01:13]} 22. Nc5 {[%emt 0:01:48]} Bc6 {[%emt 0:00:35] Wards off Bb5} 23. Be2 {[%emt 0:09:13]} Qa7 {[%emt 0:15:53]} 24. Ra3 {[%emt 0:05:19][%cal Oc5e6]} Be8 {[%emt 0:11:12]} 25. b4 {[%emt 0:03:26]} Qb6 {[%emt 0:01:47]} 26. Rb1 {[%emt 0:05:10]} Nd7 {[%emt 0:04:05]} 27. Nxd7 {[%emt 0:02:49]} Qxe3+ {[%emt 0:00:06]} 28. Rxe3 {[%emt 0:00:05]} Rxd7 {[%emt 0:00:19]} 29. Bb5 {[%emt 0:01:53]} Rb7 {[%emt 0:02:38]} 30. Bxe8 {[%emt 0:00:10]} Rxe8 {[%emt 0:00:03]} 31. Ra3 {[%emt 0:02:21]} Ra8 {[%emt 0:00:06]} 32. Kf2 {[%emt 0:00:38]} Kf8 {[%emt 0:00:50]} 33. Ke3 {[%emt 0:02:54]} Ke7 {[%emt 0:00:16]} 34. b5 {[%emt 0:02:21] Weighted Error Value: White=0.02 (flawless) /Black=0.03 (flawless) .  Inaccurate:     	---       	Black=1      OK:         	White=10    	Black=13     Best:        	White=1     	Black=1      Strong:       	---       	Black=1} 1/2-1/2

[Event "Arona Festival 2024"]
[Site "Arona Tenerife"]
[Date "2024.06.30"]
[Round "10.9"]
[White "Sankalp Gupta"]
[Black "Kochavi, Ori"]
[Result "1-0"]
[ECO "B12"]
[WhiteElo "2552"]
[BlackElo "2394"]
[Annotator "TA"]
[PlyCount "81"]
[EventDate "2024.06.20"]
[EventType "swiss"]
[EventCountry "ESP"]
[SourceTitle "playchess.com"]
[Source "ChessBase"]
[SourceQuality "1"]
[TimeControl "5400+30"]

{[%evp 9,81,10,16,8,31,25,32,47,79,97,72,86,86,86,96,62,75,69,62,56,72,63,97,35,175,179,277,232,279,220,196,145,565,218,162,58,386,367,381,-452,386,380,389,388,375,313,345,350,300,333,335,328,340,243,424,424,512,420,512,460,512,503,505,505,617,611,700,676,778,778,755,745,1006,1006]} 1. e4 {[%emt 0:00:04]} c6 {[%emt 0:00:24]} 2. d4 {[%emt 0:00:03]} d5 {[%emt 0:00:03]} 3. e5 {[%emt 0:00:08]} Bf5 {[%emt 0:00:03]} 4. h4 {[%emt 0:00:06]} a6 {[%emt 0:01:10]} 5. g4 {[%emt 0:01:13]} Bd7 {[%emt 0:00:18][%cal Oc6c5] Black is weak on the dark squares} 6. Nc3 {[%emt 0:00:03]} h5 {[%emt 0:11:17]} 7. gxh5 {[%emt 0:02:29]} Nh6 {[%emt 0:06:19]} 8. Bh3 {[%emt 0:19:12] White is slightly better.} c5 {[%emt 0:11:08]} 9. e6 {[%emt 0:12:30] White is more active.} (9. Bxd7+ $6 Nxd7 10. dxc5 (10. Nxd5 cxd4 11. Qxd4 e6 $11) 10... e6 $11) 9... Bxe6 {[%emt 0:02:55]} 10. Bxe6 {[%emt 0:00:03]} (10. dxc5 Bxh3 11. Nxh3 d4 $11) 10... fxe6 {[%emt 0:00:06]} 11. dxc5 {[%emt 0:00:27]} Nc6 {[%emt 0:05:28]} 12. Nf3 {[%emt 0:06:47]} Qa5 {[%emt 0:08:06] Repels} 13. Nd4 {[%emt 0:20:05]} Nxd4 {[%emt 0:03:52]} 14. Qxd4 {[%emt 0:00:02]} Nf5 {[%emt 0:00:06]} 15. Qg4 {[%emt 0:05:11]} Qxc5 {[%emt 0:07:18]} 16. Bf4 {[%emt 0:04:11]} (16. Qg6+ $16 Kd7 17. Bd2) 16... O-O-O {[%emt 0:03:46]} ({Better is} 16... Qd4 $1 $14) 17. O-O-O $18 {[%emt 0:00:02] And now Rh3 would win.} Qc4 {[%emt 0:02:26]} (17... d4 {might work better.}) 18. Rh3 {[%emt 0:04:22]} d4 {[%emt 0:04:55]} 19. b3 {[%emt 0:00:59]} Qc6 {[%emt 0:00:46]} 20. Ne2 {[%emt 0:00:19]} (20. Be5 $1 $18) 20... Qe4 $2 {[%emt 0:05:13][%mdl 8192]} (20... g6 $16 {is a better chance.}) 21. Rhd3 $2 {[%emt 0:08:56]} (21. Rc3+ dxc3 22. Rxd8+ Kxd8 23. Bc7+ (23. Nxc3 $2 Qh1+ 24. Kb2 Qxh4 $19) 23... Kxc7 24. Qxe4 Rxh5 25. Qe5+ (25. Nxc3 g6 $18) 25... Kb6 26. Nxc3 (26. Qxe6+ Nd6 $18)) 21... g6 {[%emt 0:00:06] [#] Threatens to win with ...e5.} 22. Ng3 {[%emt 0:10:14]} (22. hxg6 Rxh4 23. Qf3 Qxf3 24. Rxf3 Bg7 $14) ({White should play} 22. Rc3+ $1 $18 dxc3 23. Rxd8+ Kxd8 24. Bc7+ (24. Nxc3 $2 Qxf4+ 25. Qxf4 Bh6 $19) 24... Kxc7 25. Qxe4 Rxh5 26. Qxe6 (26. Nxc3 Rxh4 27. Qxe6 Bh6+ 28. f4 Bxf4+ 29. Kb2 Kb8 $18) 26... Rxh4 27. Nxc3 (27. Qxg6 Rh1+ 28. Ng1 Nd4 $18) 27... Bh6+ 28. Kb2) 22... gxh5 $2 {[%emt 0:08:47][%mdl 8192] [#]} (22... Qxf4+ $1 $14 23. Qxf4 Bh6 24. Qxh6 (24. Rc3+ $2 dxc3 $19) 24... Rxh6) 23. Rc3+ $1 {[%emt 0:01:54]} dxc3 {[%emt 0:00:04]} 24. Rxd8+ {[%emt 0:00:01]} Kxd8 {[%emt 0:00:09]} 25. Bc7+ {[%emt 0:00:01] White stays focused until the end.} (25. Nxh5 $2 {loses.} Qh1+ 26. Qd1+ Qxd1+ 27. Kxd1 Rxh5 $19) 25... Kxc7 {[%emt 0:00:13]} 26. Qxe4 {[%emt 0:00:01] Qe5+ would now be deadly.} Bh6+ {[%emt 0:00:40]} 27. Kd1 {[%emt 0:01:52] Qe5+ is the strong threat.} Rd8+ {[%emt 0:00:07]} 28. Ke1 {[%emt 0:00:11]} Nd4 {[%emt 0:00:56]} 29. Kf1 {[%emt 0:01:00]} ({Don't take} 29. Nxh5 Rd5 30. Ng3 Bg7) 29... Nc6 {[%emt 0:02:14]} 30. Qxe6 {[%emt 0:00:48]} Bf4 {[%emt 0:00:52]} 31. Nxh5 {[%emt 0:00:11]} Rd1+ $2 {[%emt 0:00:02]} (31... Be5 32. Ng3 Rd1+ 33. Kg2 Rd2) 32. Kg2 {[%emt 0:00:01]} Bd6 {[%emt 0:00:09]} 33. Qe3 {[%emt 0:01:33]} Be5 {[%emt 0:00:09]} 34. Ng3 {[%emt 0:01:08] White is clearly winning.} Rd2 {[%emt 0:00:04]} 35. Qe4 {[%emt 0:00:18]} Bd4 {[%emt 0:00:22]} 36. Ne2 {[%emt 0:00:03]} Bf6 {[%emt 0:00:57]} 37. h5 {[%emt 0:00:10][%cal Bh4h5,Bh5h6,Bh6h7][%mdl 32]} Rd8 {[%emt 0:00:30]} 38. h6 {[%emt 0:00:11]} Rg8+ {[%emt 0:00:03]} 39. Kf1 {[%emt 0:00:09]} Rh8 {[%emt 0:01:24]} 40. h7 {[%emt 0:00:02]} Rf8 {[%emt 0:00:08]} 41. Nf4 {[%emt 0:00:08] Weighted Error Value: White=0.42/Black=0.55.  Loses game:     	---       	Black=2      Missed win:     	---       	Black=1      Mistake:       	White=4     	Black=3      Inaccurate:     	White=1     	Black=1      OK:         	White=15    	Black=7      Best:        	White=2     	Black=5      Strong:       	White=1     	---} 1-0